Workbook

Sheet Notes
A3: Add table and charts tabs
A6: Check input categories with CW for BY and step changes
A7: check $ terms of standard control inputs
A8: Duplicate for ACS
A9: Split between Dist and Trans - confirm once receive final RIN
A10: Forecast by category
A13: update output detail labour split to benchmark
A14: DMIS to be removed for opex output
A15: escalate output detailed to June18 $

Sheet Tables_charts
B2: $millions, 2018/19 | C2: ='Metering opex forecast '!N50 -> FY19 | D2: ='Metering opex forecast '!O50 -> FY20 | E2: ='Metering opex forecast '!P50 -> FY21 | F2: ='Metering opex forecast '!Q50 -> FY22 | G2: ='Metering opex forecast '!R50 -> FY23 | H2: ='Metering opex forecast '!S50 -> FY24 | I2: Total
B3: ='Metering opex forecast '!C51 -> Base opex | C3: ='Metering opex forecast '!N51*(1+'Rate of change'!$N$16) -> 4.028218729 | D3: ='Metering opex forecast '!O51*(1+'Rate of change'!$N$16) -> 4.028218729 | E3: ='Metering opex forecast '!P51*(1+'Rate of change'!$N$16) -> 4.028218729 | F3: ='Metering opex forecast '!Q51*(1+'Rate of change'!$N$16) -> 4.028218729 | G3: ='Metering opex forecast '!R51*(1+'Rate of change'!$N$16) -> 4.028218729 | H3: ='Metering opex forecast '!S51*(1+'Rate of change'!$N$16) -> 4.028218729 | I3: =SUM(D3:H3) -> 20.14109364
B4: ='Metering opex forecast '!C52 -> Real price growth | C4: ='Metering opex forecast '!N52*(1+'Rate of change'!$N$16) -> 0.009072484087 | D4: ='Metering opex forecast '!O52*(1+'Rate of change'!$N$16) -> 0.01458464401 | E4: ='Metering opex forecast '!P52*(1+'Rate of change'!$N$16) -> 0.02754319545 | F4: ='Metering opex forecast '!Q52*(1+'Rate of change'!$N$16) -> 0.05118809 | G4: ='Metering opex forecast '!R52*(1+'Rate of change'!$N$16) -> 0.07841588399 | H4: ='Metering opex forecast '!S52*(1+'Rate of change'!$N$16) -> 0.1073428961 | I4: =SUM(D4:H4) -> 0.2790747096
B5: ='Metering opex forecast '!C53 -> Output growth | C5: ='Metering opex forecast '!N53*(1+'Rate of change'!$N$16) -> -0.02184027206 | D5: ='Metering opex forecast '!O53*(1+'Rate of change'!$N$16) -> -0.04368042138 | E5: ='Metering opex forecast '!P53*(1+'Rate of change'!$N$16) -> -0.06567471082 | F5: ='Metering opex forecast '!Q53*(1+'Rate of change'!$N$16) -> -0.08857003208 | G5: ='Metering opex forecast '!R53*(1+'Rate of change'!$N$16) -> -0.1132462756 | H5: ='Metering opex forecast '!S53*(1+'Rate of change'!$N$16) -> -0.1404851901 | I5: -0.45165663
B6: ='Metering opex forecast '!C54 -> Productivity growth | C6: ='Metering opex forecast '!N54*(1+'Rate of change'!$N$16) -> 0 | D6: ='Metering opex forecast '!O54*(1+'Rate of change'!$N$16) -> 0 | E6: ='Metering opex forecast '!P54*(1+'Rate of change'!$N$16) -> 0 | F6: ='Metering opex forecast '!Q54*(1+'Rate of change'!$N$16) -> 0 | G6: ='Metering opex forecast '!R54*(1+'Rate of change'!$N$16) -> 0 | H6: ='Metering opex forecast '!S54*(1+'Rate of change'!$N$16) -> 0 | I6: 0
B7: ='Metering opex forecast '!C55 -> Step changes | C7: ='Metering opex forecast '!N55*(1+'Rate of change'!$N$16) -> 0 | D7: ='Metering opex forecast '!O55*(1+'Rate of change'!$N$16) -> 0 | E7: ='Metering opex forecast '!P55*(1+'Rate of change'!$N$16) -> 0 | F7: ='Metering opex forecast '!Q55*(1+'Rate of change'!$N$16) -> 0 | G7: ='Metering opex forecast '!R55*(1+'Rate of change'!$N$16) -> 0 | H7: ='Metering opex forecast '!S55*(1+'Rate of change'!$N$16) -> 0 | I7: 0
B8: ='Metering opex forecast '!#REF! ->  | C8: ='Metering opex forecast '!#REF! ->  | D8: ='Metering opex forecast '!#REF! ->  | E8: ='Metering opex forecast '!#REF! ->  | F8: ='Metering opex forecast '!#REF! ->  | G8: ='Metering opex forecast '!#REF! ->  | H8: ='Metering opex forecast '!#REF! -> 
B9: ='Metering opex forecast '!C56 -> Total | C9: =SUM(C3:C8) ->  | D9: =SUM(D3:D8) ->  | E9: =SUM(E3:E8) -> 
B36: Maintenance as % of total in BY

Sheet Index Tables
A3: Inflation | G3: Australian Bureau of Statistics (ABS) Data | K3: Forecast
B4: FY09 | C4: FY10 | D4: FY11 | E4: FY12 | F4: FY13 | G4: FY14 | H4: FY15 | I4: FY16 | J4: FY17 | K4: FY18 | L4: FY19 | M4: FY20 | N4: FY21 | O4: FY22 | P4: FY23 | Q4: FY24 | R4: FY25 | S4: FY26
A5: Inflation rate | B5: 0.0435 | C5: 0.0177 | D5: 0.0292 | E5: 0.033 | F5: 0.0176 | G5: 0.03015564202 | H5: 0.01510859301 | I5: 0.01023255814 | J5: 0.01933701657 | K5: 0.02077687444 | L5: 0.0225 | M5: 0.02449951148 | N5: 0.02449951148 | O5: 0.02449951148 | P5: 0.02449951148 | Q5: 0.02449951148 | R5: 0.0245 | S5: 0.0245
A7: CPI indices (real mid year to nominal)
A9: Real 2009 | B9: 1 | C9: =B9*(1+B$5) -> 1.0435 | D9: 1.06196995 | E9: 1.092979473 | F9: 1.129047795 | G9: 1.148919036 | H9: 1.183565428 | I9: 1.201447436 | J9: 1.213741317 | K9: =J9*(1+K$5) -> 1.238959068 | L9: =K9*(1+L$5) -> 1.266835647 | M9: =L9*(1+M$5) -> 1.297872501 | N9: =M9*(1+N$5) -> 1.329669743 | O9: =N9*(1+O$5) -> 1.362246002 | P9: =O9*(1+P$5) -> 1.395620364 | Q9: =P9*(1+Q$5) -> 1.429812381 | R9: =Q9*(1+R$5) -> 1.464842784 | S9: =R9*(1+S$5) -> 1.500731433
A10: Real 2010 | B10: =C10/(1+B$5) -> 0.9583133685 | C10: 1 | D10: =C10*(1+C$5) -> 1.0177 | E10: 1.04741684 | F10: 1.081981596 | G10: 1.101024472 | H10: 1.134226572 | I10: 1.151363139 | J10: 1.16314453 | K10: =J10*(1+K$5) -> 1.187311037 | L10: 1.214025536 | M10: 1.243768568 | N10: 1.274240291 | O10: 1.305458555 | P10: 1.337441652 | Q10: 1.370208319 | R10: 1.403778423 | S10: 1.438170994
A11: Real 2011 | B11: 0.9416462302 | C11: =D11/(1+C$5) -> 0.9826078412 | D11: 1 | E11: =D11*(1+D$5) -> 1.0292 | F11: 1.0631636 | G11: 1.081875279 | H11: 1.114499923 | I11: 1.131338449 | J11: 1.142914935 | K11: 1.166661135 | L11: 1.192911011 | M11: 1.222136748 | N11: 1.252078501 | O11: 1.282753813 | P11: 1.314180655 | Q11: 1.346377439 | R11: 1.379363686 | S11: 1.413158096
A12: Real 2012 | B12: 0.9149302664 | C12: 0.954729733 | D12: =E12/(1+D$5) -> 0.9716284493 | E12: 1 | F12: =E12*(1+E$5) -> 1.033 | G12: =F12*(1+F$5) -> 1.0511808 | H12: =G12*(1+G$5) -> 1.082879832 | I12: =H12*(1+H$5) -> 1.099240623 | J12: =I12*(1+I$5) -> 1.110488666 | K12: 1.13356115 | L12: 1.159066276 | M12: 1.187462833 | N12: 1.216555092 | O12: 1.246360098 | P12: 1.276895311 | Q12: 1.308178623 | R12: 1.340228999 | S12: 1.373064609
A13: Real 2013 | B13: 0.8857020972 | C13: 0.9242301384 | D13: 0.9405890119 | E13: =F13/(1+E$5) -> 0.968054211 | F13: 1 | G13: =F13*(1+F$5) -> 1.0176 | H13: =G13*(1+G$5) -> 1.048286381 | I13: =H13*(1+H$5) -> 1.064124514 | J13: =I13*(1+I$5) -> 1.07501323 | K13: 1.097348644 | L13: 1.122038989 | M13: =L13*(1+M$5) -> 1.149528396 | N13: 1.17769128 | O13: 1.206544141 | P13: 1.236103883 | Q13: 1.266387825 | R13: 1.297414326 | S13: 1.329200977
A14: Real 2014 | B14: 0.8703833502 | C14: 0.908245026 | D14: 0.9243209629 | E14: 0.9513111351 | F14: =G14/(1+F$5) -> 0.9827044025 | G14: 1 | H14: =G14*(1+G$5) -> 1.030155642 | I14: =H14*(1+H$5) -> 1.045719844 | J14: =I14*(1+I$5) -> 1.056420233 | K14: 1.078369344 | L14: 1.102632654 | M14: 1.129646616 | N14: 1.157322406 | O14: 1.185676239 | P14: 1.214724728 | Q14: 1.24448489 | R14: 1.27497477 | S14: 1.306211652
A15: Real 2015 | B15: 0.8449047064 | C15: 0.8816580611 | D15: 0.8972634088 | E15: 0.9234635003 | F15: 0.9539377958 | G15: =H15/(1+G$5) -> 0.970727101 | H15: 1 | I15: =H15*(1+H$5) -> 1.015108593 | J15: =I15*(1+I$5) -> 1.025495751 | K15: 1.046802347 | L15: 1.0703554 | M15: 1.096578584 | N15: 1.123444224 | O15: 1.150968059 | P15: 1.179166214 | Q15: 1.20805521 | R15: 1.237652563 | S15: 1.26797505
A16: Real 2016 | B16: 0.8323293805 | C16: 0.8685357086 | D16: 0.8839087906 | E16: 0.9097189273 | F16: 0.9397396519 | G16: =H16/(1+G$5) -> 0.9562790698 | H16: =I16/(1+H$5) -> 0.9851162791 | I16: 1 | J16: =I16*(1+I$5) -> 1.010232558 | K16: 1.031222033 | L16: 1.054424529 | M16: 1.080257415 | N16: 1.106723194 | O16: 1.133837371 | P16: 1.161615833 | Q16: 1.190074853 | R16: 1.219231687 | S16: 1.249102864
A17: Real 2017 | B17: 0.8238987883 | C17: 0.8597383856 | D17: 0.874955755 | E17: 0.900504463 | F17: 0.9302211103 | G17: =H17/(1+G$5) -> 0.9465930018 | H17: =I17/(1+H$5) -> 0.9751381215 | I17: =J17/(1+I$5) -> 0.9898710866 | J17: 1 | K17: 1.020776874 | L17: 1.043744354 | M17: 1.069315581 | N17: 1.09551329 | O17: 1.122352831 | P17: 1.149849927 | Q17: 1.178020688 | R17: 1.206882195 | S17: 1.236450809
A18: Real 2018 | B18: 0.8071291669 | C18: 0.8422392857 | D18: 0.857146921 | E18: 0.8821756111 | F18: 0.9112874063 | G18: =H18/(1+G$5) -> 0.9273260646 | H18: =I18/(1+H$5) -> 0.9552901775 | I18: =J18/(1+I$5) -> 0.969723268 | J18: =K18/(1+K$5) -> 0.9796460177 | K18: 1 | L18: 1.0225 | M18: 1.04755075 | N18: 1.073215232 | O18: 1.099508481 | P18: 1.126445902 | Q18: 1.154043276 | R18: 1.182317336 | S18: 1.211284111
A19: Real 2019 | B19: 0.7893683784 | C19: 0.8237059029 | D19: 0.8382854973 | E19: 0.8627634339 | F19: 0.8912346272 | G19: =H19/(1+G$5) -> 0.9069203566 | H19: =I19/(1+H$5) -> 0.9342691222 | I19: =J19/(1+I$5) -> 0.9483846142 | J19: =K19/(1+K$5) -> 0.9580890149 | K19: =L19/(1+L$5) -> 0.97799511 | L19: 1 | M19: 1.024499511 | N19: =M19*(1+N$5) -> 1.049599249 | O19: =N19*(1+O$5) -> 1.075313918 | P19: =O19*(1+P$5) -> 1.101658584 | Q19: =P19*(1+Q$5) -> 1.128648681 | R19: =Q19*(1+R$5) -> 1.156300573 | S19: =R19*(1+S$5) -> 1.184629937
A20: Nominal | B20: 1 | C20: 1 | D20: 1 | E20: 1 | F20: 1 | G20: 1 | H20: 1 | I20: 1 | J20: 1 | K20: 1 | L20: 1 | M20: 1 | N20: 1 | O20: 1 | P20: 1 | Q20: 1 | R20: 1 | S20: 1
A22: CPI indices (nominal to real mid year)
A24: Real 2009 | B24: =1/B$9 -> 1 | C24: =1/C$9 -> 0.9583133685 | D24: =1/D$9 -> 0.9416462302 | E24: 0.9149302664 | F24: 0.8857020972 | G24: 0.8703833502 | H24: 0.8449047064 | I24: 0.8323293805 | J24: 0.8238987883 | K24: 0.8071291669 | L24: 0.7893683784 | M24: 0.7704917079 | N24: 0.7520664474 | O24: 0.7340818019 | P24: 0.7165272346 | Q24: 0.699392461 | R24: 0.6826671167 | S24: 0.6663417439
A25: Real 2010 | B25: =1/B$9 -> 1 | C25: =1/C$10 -> 1 | D25: 0.9826078412 | E25: 0.954729733 | F25: 0.9242301384 | G25: 0.908245026 | H25: 0.8816580611 | I25: 0.8685357086 | J25: 0.8597383856 | K25: 0.8422392857 | L25: 0.8237059029 | M25: 0.8040080972 | N25: 0.7847813378 | O25: 0.7660143602 | P25: 0.7476961694 | Q25: 0.7298160331 | R25: 0.7123631362 | S25: 0.6953276098
A26: Real 2011 | B26: =1/B$11 -> 1.06196995 | C26: =1/C$11 -> 1.0177 | D26: =1/D$11 -> 1 | E26: 0.9716284493 | F26: 0.9405890119 | G26: 0.9243209629 | H26: 0.8972634088 | I26: 0.8839087906 | J26: 0.874955755 | K26: 0.857146921 | L26: 0.8382854973 | M26: 0.8182390406 | N26: 0.7986719675 | O26: 0.7795728144 | P26: 0.7609303915 | Q26: 0.7427337769 | R26: 0.7249719637 | S26: 0.7076349085
A27: Real 2012 | B27: =1/B$12 -> 1.092979473 | C27: =1/C$12 -> 1.04741684 | D27: =1/D$12 -> 1.0292 | E27: 1 | F27: 0.968054211 | G27: 0.9513111351 | H27: 0.9234635003 | I27: 0.9097189273 | J27: 0.900504463 | K27: 0.8821756111 | L27: 0.8627634339 | M27: 0.8421316206 | N27: 0.821993189 | O27: 0.8023363406 | P27: 0.783149559 | Q27: 0.7644216031 | R27: 0.7461411451 | S27: 0.7282978478
A28: Real 2013 | B28: =1/B$13 -> 1.129047795 | C28: =1/C$13 -> 1.081981596 | D28: =1/D$13 -> 1.0631636 | E28: 1.033 | F28: 1 | G28: 0.9827044025 | H28: 0.9539377958 | I28: 0.9397396519 | J28: 0.9302211103 | K28: 0.9112874063 | L28: 0.8912346272 | M28: 0.869921964 | N28: 0.8491189642 | O28: 0.8288134398 | P28: 0.8089934944 | Q28: 0.789647516 | R28: 0.7707638029 | S28: 0.7523316768
A29: Real 2014 | B29: =1/B$14 -> 1.148919036 | C29: =1/C$14 -> 1.101024472 | D29: =1/D$14 -> 1.081875279 | E29: 1.0511808 | F29: 1.0176 | G29: 1 | H29: 0.970727101 | I29: 0.9562790698 | J29: 0.9465930018 | K29: 0.9273260646 | L29: 0.9069203566 | M29: 0.8852325906 | N29: 0.864063458 | O29: 0.8434005564 | P29: 0.8232317799 | Q29: 0.8035453123 | R29: 0.7843292458 | S29: 0.7655727143
A30: Real 2015 | B30: =1/B$15 -> 1.183565428 | C30: =1/C$15 -> 1.134226572 | D30: =1/D$15 -> 1.114499923 | E30: 1.082879832 | F30: 1.048286381 | G30: 1.030155642 | H30: 1 | I30: 0.9851162791 | J30: 0.9751381215 | K30: 0.9552901775 | L30: 0.9342691222 | M30: 0.9119273477 | N30: 0.8901198463 | O30: 0.8688338416 | P30: 0.8480568628 | Q30: 0.8277767371 | R30: 0.8079811978 | S30: 0.788659051
A31: Real 2016 | B31: =1/B$16 -> 1.201447436 | C31: =1/C$16 -> 1.151363139 | D31: =1/D$16 -> 1.131338449 | E31: 1.099240623 | F31: 1.064124514 | G31: 1.045719844 | H31: =1/H$16 -> 1.015108593 | I31: 1 | J31: 0.9898710866 | K31: 0.969723268 | L31: 0.9483846142 | M31: 0.9257052869 | N31: 0.9035683048 | O31: 0.8819606985 | P31: 0.8608698088 | Q31: 0.8402832789 | R31: 0.8201886568 | S31: 0.8005745796
A32: Real 2017 | B32: =1/B$17 -> 1.213741317 | C32: =1/C$17 -> 1.16314453 | D32: =1/D$17 -> 1.142914935 | E32: 1.110488666 | F32: 1.07501323 | G32: 1.056420233 | H32: 1.025495751 | I32: 1.010232558 | J32: 1 | K32: 0.9796460177 | L32: 0.9580890149 | M32: 0.93517762 | N32: 0.91281412 | O32: 0.8909854127 | P32: 0.8696787091 | Q32: 0.8488815264 | R32: 0.828581285 | S32: 0.8087665056
A33: Real 2018 | B33: =1/B$18 -> 1.238959068 | C33: =1/C$18 -> 1.187311037 | D33: =1/D$18 -> 1.166661135 | E33: 1.13356115 | F33: 1.097348644 | G33: 1.078369344 | H33: 1.046802347 | I33: 1.031222033 | J33: =1/J$18 -> 1.020776874 | K33: 1 | L33: 0.97799511 | M33: 0.954607688 | N33: 0.9317795444 | O33: 0.9094973047 | P33: 0.8877479145 | Q33: 0.8665186313 | R33: 0.8457966143 | S33: 0.8255701457
A34: Real 2019 | B34: =1/B$19 -> 1.266835647 | C34: 1.214025536 | D34: 1.192911011 | E34: 1.159066276 | F34: 1.122038989 | G34: 1.102632654 | H34: 1.0703554 | I34: 1.054424529 | J34: 1.043744354 | K34: =1/K$19 -> 1.0225 | L34: 1 | M34: =1/M$19 -> 0.976086361 | N34: =1/N$19 -> 0.9527445841 | O34: 0.9299609941 | P34: 0.9077222426 | Q34: 0.8860153005 | R34: 0.8648270381 | S34: 0.844145474
A35: Nominal | B35: =1/B$20 -> 1 | C35: 1 | D35: 1 | E35: 1 | F35: 1 | G35: 1 | H35: 1 | I35: 1 | J35: 1 | K35: 1 | L35: 1 | M35: 1 | N35: 1 | O35: 1 | P35: 1 | Q35: 1 | R35: 1 | S35: 1
A38: CPI indices (nominal mid year to real end year)
A40: Real 2009 | B40: =1/(1+B$5)^0.5 -> 0.9789348132 | C40: =B40*(1+B$5)^(1-0.5)*(1+C$5)^0.5 -> 1.008811182 | D40: =C40*(1+C$5)^(1-0.5)*(1+D$5)^0.5 -> 1.032451509 | E40: =D40*(1+D$5)^(1-0.5)*(1+E$5)^0.5 -> 1.064558943 | F40: 1.091461504 | G40: 1.11750222 | H40: 1.142762734 | I40: 1.157238842 | J40: 1.174336556 | K40: 1.197889862 | L40: 1.223809891 | M40: 1.252568527 | N40: 1.283255844 | O40: 1.314694986 | P40: 1.346904371 | Q40: 1.37990287 | R40: 1.413710153 | S40: =R40*(1+R$5)^(1-0.5)*(1+S$5)^0.5 -> 1.448346052
A41: Real 2010 | B41: =C41/((1+C$5)^0.5*(1+B$5)^(1-0.5)) -> 0.9619090235 | C41: =1/(1+C$5)^0.5 -> 0.9912657773 | D41: =C41*(1+C$5)^(1-0.5)*(1+D$5)^0.5 -> 1.014494948 | E41: 1.046043965 | F41: =E41*(1+E$5)^(1-0.5)*(1+F$5)^0.5 -> 1.072478632 | G41: 1.098066444 | H41: 1.122887623 | I41: 1.13711196 | J41: 1.153912308 | K41: 1.177055971 | L41: 1.202525195 | M41: 1.230783657 | N41: 1.260937255 | O41: 1.291829602 | P41: 1.323478796 | Q41: 1.35590338 | R41: 1.389122681 | S41: 1.423156187
A42: Real 2011 | B42: 0.9346181728 | C42: 0.96314203 | D42: =1/(1+D$5)^0.5 -> 0.9857121534 | E42: =D42*(1+D$5)^(1-0.5)*(1+E$5)^0.5 -> 1.016366076 | F42: =E42*(1+E$5)^(1-0.5)*(1+F$5)^0.5 -> 1.04205075 | G42: 1.066912596 | H42: 1.09102956 | I42: 1.10485033 | J42: 1.121174027 | K42: 1.143661068 | L42: 1.168407691 | M42: 1.195864416 | N42: 1.22516251 | O42: 1.255178393 | P42: 1.28592965 | Q42: 1.317434298 | R42: 1.349711117 | S42: 1.382779039
A43: Real 2012 | B43: 0.9047610579 | C43: 0.932373698 | D43: 0.9542228009 | E43: =1/(1+E$5)^0.5 -> 0.9838974596 | F43: 1.008761617 | G43: 1.032829232 | H43: 1.05617576 | I43: 1.069555015 | J43: 1.085357238 | K43: 1.107125913 | L43: 1.131081985 | M43: 1.157661583 | N43: 1.186023727 | O43: 1.215080729 | P43: 1.244849613 | Q43: 1.27534782 | R43: 1.30659353 | S43: 1.338605072
A44: Real 2013 | B44: 0.8891126748 | C44: 0.9162477378 | D44: 0.9377189475 | E44: 0.9668803652 | F44: =1/(1+F$5)^0.5 -> 0.9913144821 | G44: 1.014965833 | H44: 1.037908569 | I44: 1.051056422 | J44: 1.066585336 | K44: 1.087977509 | L44: 1.111519247 | M44: 1.137639135 | N44: 1.165510738 | O44: 1.194065181 | P44: 1.223319195 | Q44: 1.253289918 | R44: 1.283995215 | S44: 1.315453097
A45: Real 2014 | B45: 0.8630857693 | C45: 0.8894265103 | D45: 0.9102691955 | E45: 0.9385769739 | F45: =G45/((1+G$5)^0.5*(1+F$5)^(1-0.5)) -> 0.9622958335 | G45: =1/(1+G$5)^0.5 -> 0.9852548407 | H45: 1.007525976 | I45: 1.020288954 | J45: 1.035363291 | K45: 1.056129253 | L45: 1.078981856 | M45: 1.104337139 | N45: 1.13139286 | O45: 1.159111432 | P45: 1.187509096 | Q45: 1.216602489 | R45: 1.246408952 | S45: 1.276945972
A46: Real 2015 | B46: 0.8491983756 | C46: 0.8751152836 | D46: 0.8956226016 | E46: 0.9234748967 | F46: =G46/((1+G$5)^0.5*(1+F$5)^(1-0.5)) -> 0.9468121103 | G46: =H46/((1+G$5)^0.5*(1+F$5)^(1-0.5)) -> 0.9694016979 | H46: =1/(1+H$5)^0.5 -> 0.9925302409 | I46: 1.005103257 | J46: 1.019953233 | K46: 1.04041012 | L46: 1.062922591 | M46: 1.087900493 | N46: 1.114553524 | O46: 1.141859541 | P46: 1.169834542 | Q46: 1.198494917 | R46: 1.227857749 | S46: 1.257940264
A47: Real 2016 | B47: 0.8416278359 | C47: 0.8673136965 | D47: 0.8876381934 | E47: 0.9152421873 | F47: =G47/((1+G$5)^0.5*(1+F$5)^(1-0.5)) -> 0.9383713514 | G47: =H47/((1+H$5)^0.5*(1+G$5)^(1-0.5)) -> 0.9607595546 | H47: 0.982476988 | I47: =1/(1+I$5)^0.5 -> 0.9949226536 | J47: 1.009622215 | K47: 1.029871896 | L47: 1.05215634 | M47: 1.076881243 | N47: 1.103264308 | O47: 1.130293744 | P47: 1.157985389 | Q47: 1.186355465 | R47: 1.215420884 | S47: 1.245198696
A48: Real 2017 | B48: =C48/((1+C$5)^0.5*(1+B$5)^(1-0.5)) -> 0.8256619961 | C48: 0.8508605912 | D48: 0.8707995284 | E48: 0.8978798694 | F48: 0.9205702689 | G48: 0.9425337636 | H48: 0.9638392131 | I48: 0.9760487821 | J48: =1/(1+J$5)^0.5 -> 0.9904694898 | K48: 1.010335031 | L48: 1.032196735 | M48: 1.056452602 | N48: 1.082335175 | O48: 1.108851858 | P48: 1.136018187 | Q48: 1.163850077 | R48: 1.19236412 | S48: 1.221577041
A49: Real 2018 | B49: =C49/((1+C$5)^0.5*(1+B$5)^(1-0.5)) -> 0.8088564865 | C49: 0.8335421898 | D49: 0.8530752903 | E49: 0.8796044384 | F49: 0.9018329979 | G49: 0.923349448 | H49: 0.9442212469 | I49: 0.9561823024 | J49: 0.9703094914 | K49: =1/(1+K$5)^0.5 -> 0.9897706895 | L49: =K49*(1+K$5)^(1-0.5)*(1+L$5)^0.5 -> 1.011187421 | M49: 1.034949584 | N49: =M49*(1+M$5)^(1-0.5)*(1+N$5)^0.5 -> 1.060305344 | O49: 1.086282307 | P49: 1.112895692 | Q49: 1.140161093 | R49: 1.168094762 | S49: 1.196713083
A50: Real 2019 | B50: =C50/((1+C$5)^0.5*(1+B$5)^(1-0.5)) -> 0.7910576885 | C50: 0.8152001856 | D50: 0.8343034623 | E50: 0.8602488395 | F50: 0.881988262 | G50: 0.903031245 | H50: 0.9234437622 | I50: 0.9351416161 | J50: 0.9489579378 | K50: =L50/((1+L$5)^0.5*(1+K$5)^(1-0.5)) -> 0.9679908943 | L50: =1/(1+L$5)^0.5 -> 0.9889363529 | M50: 1.012175633 | N50: =M50*(1+M$5)^(1-0.5)*(1+N$5)^0.5 -> 1.036973441 | O50: 1.062378784 | P50: 1.088406545 | Q50: 1.115071974 | R50: 1.142390965 | S50: 1.170379543
A51: Nominal | B51: =1/B$20 -> 1 | C51: 1 | D51: 1 | E51: 1 | F51: 1 | G51: 1 | H51: 1 | I51: 1 | J51: 1 | K51: 1 | L51: 1 | M51: 1 | N51: 1 | O51: 1 | P51: 1 | Q51: 1 | R51: 1 | S51: 1

Sheet Rate of change
C1: Evoenergy Electricity Distribution Deterimation 2019-24
C2: Metering opex model
C3: Rate of change | J3: 2014-19 regulatory period | O3: 2019-24 regulatory period
J4: Historical period | M4: Base year | N4: Forecast period
D5: Source | E5: Unit | F5: Basis | I5: FY ending | J5: 2015 | K5: =J5+1 -> 2016 | L5: 2017 | M5: 2018 | N5: 2019 | O5: 2020 | P5: 2021 | Q5: 2022 | R5: 2023 | S5: 2024
B9: Input | Inflation
C11: Dollar conversion to year-end | D11: Calculated | I11: 0.5
C14: Inflation | N14: Forecast
I15: FY14 | J15: ="FY"&RIGHT(J$5,2) -> FY15 | K15: ="FY"&RIGHT(K$5,2) -> FY16 | L15: FY17 | M15: FY18 | N15: FY19 | O15: FY20 | P15: FY21 | Q15: FY22 | R15: FY23 | S15: FY24
C16: Inflation Rate | D16: ABS / RBA / AAD | E16: Per cent | I16: 0.03015564202 | J16: 0.01510859301 | K16: 0.01023255814 | L16: 0.01933701657 | M16: 0.02077687444 | N16: 0.0225 | O16: 0.02449951148 | P16: 0.02449951148 | Q16: 0.02449951148 | R16: 0.02449951148 | S16: 0.02449951148
C18: Source (actuals): ABS, all groups CPI inflation, weighted average for the eight capital cities - average of four quarters to December on the average of the four quarters to the previous December
C19: Source (forecast): Based on the AER's approach of calculating the geometric average based on the inflation forecasts for two years sourced from the latest available Reserve Bank of Australia’s (RBA’s) Statement of monetary policy and the mid-point of the RBA’s target inflation band for eight years.
C20: CPI indexes (real to nominal)
C22: Real 2014 | D22: Calculated | E22: factor | I22: =1/(1+I$16)^Dollar_Conversion_Factor -> 0.9852548407 | J22: =I22*(1+I$16)^(1-Dollar_Conversion_Factor)*(1+J$16)^Dollar_Conversion_Factor -> 1.007525976 | K22: 1.020288954 | L22: 1.035363291 | M22: 1.056129253 | N22: 1.078981856 | O22: 1.104337139 | P22: 1.13139286 | Q22: 1.159111432 | R22: 1.187509096 | S22: 1.216602489
C23: Real 2015 | D23: Calculated | E23: factor | I23: =J23/((1+J$16)^Dollar_Conversion_Factor*(1+I$16)^(1-Dollar_Conversion_Factor)) -> 0.9705905826 | J23: =1/(1+J$16)^Dollar_Conversion_Factor -> 0.9925302409 | K23: =J23*(1+J$16)^(1-Dollar_Conversion_Factor)*(1+K$16)^Dollar_Conversion_Factor -> 1.005103257 | L23: =K23*(1+K$16)^(1-Dollar_Conversion_Factor)*(1+L$16)^Dollar_Conversion_Factor -> 1.019953233 | M23: =L23*(1+L$16)^(1-Dollar_Conversion_Factor)*(1+M$16)^Dollar_Conversion_Factor -> 1.04041012 | N23: =M23*(1+M$16)^(1-Dollar_Conversion_Factor)*(1+N$16)^Dollar_Conversion_Factor -> 1.062922591 | O23: =N23*(1+N$16)^(1-Dollar_Conversion_Factor)*(1+O$16)^Dollar_Conversion_Factor -> 1.087900493 | P23: =O23*(1+O$16)^(1-Dollar_Conversion_Factor)*(1+P$16)^Dollar_Conversion_Factor -> 1.114553524 | Q23: =P23*(1+P$16)^(1-Dollar_Conversion_Factor)*(1+Q$16)^Dollar_Conversion_Factor -> 1.141859541 | R23: =Q23*(1+Q$16)^(1-Dollar_Conversion_Factor)*(1+R$16)^Dollar_Conversion_Factor -> 1.169834542 | S23: =R23*(1+R$16)^(1-Dollar_Conversion_Factor)*(1+S$16)^Dollar_Conversion_Factor -> 1.198494917
C24: Real 2016 | D24: Calculated | E24: factor | I24: =J24/((1+J$16)^Dollar_Conversion_Factor*(1+I$16)^(1-Dollar_Conversion_Factor)) -> 0.9705905826 | J24: =1/(1+J$16)^Dollar_Conversion_Factor -> 0.9925302409 | K24: =1/(1+K$16)^Dollar_Conversion_Factor -> 0.9949226536 | L24: =K24*(1+K$16)^(1-Dollar_Conversion_Factor)*(1+L$16)^Dollar_Conversion_Factor -> 1.009622215 | M24: 1.029871896 | N24: 1.05215634 | O24: 1.076881243 | P24: 1.103264308 | Q24: 1.130293744 | R24: 1.157985389 | S24: 1.186355465
C25: Real 2017 | D25: Calculated | E25: factor | I25: =J25/((1+J$16)^Dollar_Conversion_Factor*(1+I$16)^(1-Dollar_Conversion_Factor)) -> 0.9607595546 | J25: =K25/((1+K$16)^Dollar_Conversion_Factor*(1+J$16)^(1-Dollar_Conversion_Factor)) -> 0.982476988 | K25: =1/(1+K$16)^Dollar_Conversion_Factor -> 0.9949226536 | L25: =1/(1+L$16)^Dollar_Conversion_Factor -> 0.9904694898 | M25: =L25*(1+L$16)^(1-Dollar_Conversion_Factor)*(1+M$16)^Dollar_Conversion_Factor -> 1.010335031 | N25: 1.032196735 | O25: 1.056452602 | P25: 1.082335175 | Q25: 1.108851858 | R25: 1.136018187 | S25: 1.163850077
C26: Real 2018 | D26: Calculated | E26: factor | I26: =J26/((1+J$16)^Dollar_Conversion_Factor*(1+I$16)^(1-Dollar_Conversion_Factor)) -> 0.9425337636 | J26: =K26/((1+K$16)^Dollar_Conversion_Factor*(1+J$16)^(1-Dollar_Conversion_Factor)) -> 0.9638392131 | K26: =L26/((1+L$16)^Dollar_Conversion_Factor*(1+K$16)^(1-Dollar_Conversion_Factor)) -> 0.9760487821 | L26: =1/(1+L$16)^Dollar_Conversion_Factor -> 0.9904694898 | M26: =1/(1+M$16)^Dollar_Conversion_Factor -> 0.9897706895 | N26: =M26*(1+M$16)^(1-Dollar_Conversion_Factor)*(1+N$16)^Dollar_Conversion_Factor -> 1.011187421 | O26: 1.034949584 | P26: 1.060305344 | Q26: 1.086282307 | R26: 1.112895692 | S26: 1.140161093
C27: Real 2019 | D27: Calculated | E27: factor | I27: 0.923349448 | J27: =K27/((1+K$16)^Dollar_Conversion_Factor*(1+J$16)^(1-Dollar_Conversion_Factor)) -> 0.9442212469 | K27: =L27/((1+L$16)^Dollar_Conversion_Factor*(1+K$16)^(1-Dollar_Conversion_Factor)) -> 0.9561823024 | L27: =M27/((1+M$16)^Dollar_Conversion_Factor*(1+L$16)^(1-Dollar_Conversion_Factor)) -> 0.9703094914 | M27: =1/(1+M$16)^Dollar_Conversion_Factor -> 0.9897706895 | N27: =1/(1+N$16)^Dollar_Conversion_Factor -> 0.9889363529 | O27: =N27*(1+N$16)^(1-Dollar_Conversion_Factor)*(1+O$16)^Dollar_Conversion_Factor -> 1.012175633 | P27: 1.036973441 | Q27: 1.062378784 | R27: 1.088406545 | S27: 1.115071974
C28: Real 2020 | D28: Calculated | E28: factor | I28: 0.903031245 | J28: =K28/((1+K$16)^Dollar_Conversion_Factor*(1+J$16)^(1-Dollar_Conversion_Factor)) -> 0.9234437622 | K28: =L28/((1+L$16)^Dollar_Conversion_Factor*(1+K$16)^(1-Dollar_Conversion_Factor)) -> 0.9351416161 | L28: =M28/((1+M$16)^Dollar_Conversion_Factor*(1+L$16)^(1-Dollar_Conversion_Factor)) -> 0.9489579378 | M28: =N28/((1+N$16)^Dollar_Conversion_Factor*(1+M$16)^(1-Dollar_Conversion_Factor)) -> 0.9679908943 | N28: =1/(1+N$16)^Dollar_Conversion_Factor -> 0.9889363529 | O28: =1/(1+O$16)^Dollar_Conversion_Factor -> 0.98797083 | P28: =O28*(1+O$16)^(1-Dollar_Conversion_Factor)*(1+P$16)^Dollar_Conversion_Factor -> 1.012175633 | Q28: =P28*(1+P$16)^(1-Dollar_Conversion_Factor)*(1+Q$16)^Dollar_Conversion_Factor -> 1.036973441 | R28: =Q28*(1+Q$16)^(1-Dollar_Conversion_Factor)*(1+R$16)^Dollar_Conversion_Factor -> 1.062378784 | S28: =R28*(1+R$16)^(1-Dollar_Conversion_Factor)*(1+S$16)^Dollar_Conversion_Factor -> 1.088406545
B31: Real price change
E34: Unit | J34: Labour | K34: Other | L34: Total | M34: Check
C36: Benchmark labour / non-labour weights | E36: Per cent | J36: ='[8]Rate of change'!J$36 -> 0.597 | K36: =1-J36 -> 0.403 | L36: =SUM(J36:K36) -> 1 | M36: =IF(ROUND(($L36-1),7)=0,"Ok","Check") -> Ok
D40: Source | E40: Unit | M40: ="FY"&RIGHT(M$5,2) -> FY18 | N40: FY19 | O40: FY20 | P40: FY21 | Q40: FY22 | R40: FY23 | S40: FY24
C42: Annual price growth forecast
C43: Average of EGWWS and DAE labour | D43: External | E43: Per cent | M43: ='[9]Wage Forecasts'!I30/100 -> 0.005704288097 | N43: =N56 -> 0.003772583315 | O43: =O56 -> 0.002262033231 | P43: 0.005265314745 | Q43: 0.00929108152 | R43: 0.009946458309 | S43: 0.00949651058
C44: Non-labour | D44: External | E44: Per cent | M44: 0 | N44: 0 | O44: 0 | P44: 0 | Q44: 0 | R44: 0 | S44: 0
C46: Cumulative factor
C47: =$C$43 -> Average of EGWWS and DAE labour | D47: Calculated | E47: Factor | M47: 1 | N47: =M47*(1+N43) -> 1.003772583 | O47: =N47*(1+O43) -> 1.00604315 | P47: =O47*(1+P43) -> 1.011340284 | Q47: 1.020736729 | R47: 1.030889444 | S47: 1.040679297
C48: =$C$44 -> Non-labour | D48: Calculated | E48: Factor | M48: 1 | N48: 1 | O48: 1 | P48: 1 | Q48: 1 | R48: 1 | S48: 1
C53: Opex real price factor | D53: Calculated | E53: Factor | M53: =SUM($J$36*M47)+($K$36*M48) -> 1 | N53: 1.002252232 | O53: 1.003607761 | P53: 1.00677015 | Q53: 1.012379827 | R53: 1.018440998 | S53: 1.02428554
C54: EGWWS labour | D54: External | E54: Per cent | N54: ='[9]Wage Forecasts'!J30/100 -> 0.007382366632 | O54: ='[9]Wage Forecasts'!K30/100 -> 0.005667223273 | P54: ='[9]Wage Forecasts'!L30/100 -> 0.01113153599 | Q54: ='[9]Wage Forecasts'!M30/100 -> 0.01548146245 | R54: ='[9]Wage Forecasts'!N30/100 -> 0.01492473718 | S54: ='[9]Wage Forecasts'!O30/100 -> 0.01249056463
C55: DAE labour | D55: External | E55: Per cent | N55: 0.0001627999976 | O55: -0.001143156811 | P55: -0.000600906504 | Q55: 0.003100700588 | R55: 0.004968179443 | S55: 0.006502456524
C56: Average | N56: =AVERAGE(N54:N55) -> 0.003772583315 | O56: =AVERAGE(O54:O55) -> 0.002262033231 | P56: 0.005265314745 | Q56: 0.00929108152 | R56: 0.009946458309 | S56: 0.00949651058
B57: Opex productivity and output growth
C59: Partial factor productivity | D59: Source | E59: Unit | F59: Basis | M59: ="FY"&RIGHT(M$5,2) -> FY18 | N59: FY19 | O59: FY20 | P59: FY21 | Q59: FY22 | R59: FY23 | S59: FY24
C61: Partial factor productivity | E61: Per cent | F61: n/a | M61: 0 | N61: 0 | O61: 0 | P61: 0 | Q61: 0 | R61: 0 | S61: 0
E62: Per cent
E63: Per cent
C66: Output growth factor weights
C68: BY variable costs | E68: Per cent | I68: ='Base opex output'!K17 -> 0.5394664303
B71: VARIABLES BELOW TO BE UPDATED
D72: Source | E72: Unit | F72: Basis | M72: ="FY"&RIGHT(M$5,2) -> FY18 | N72: FY19 | O72: FY20 | P72: FY21 | Q72: FY22 | R72: FY23 | S72: FY24 | W72: from draft Jacobs forecast
B73: meter numbers | W73: 2016/17 | X73: =SUM([10]Customers!B14:E14) -> 189191
C74: Forecasts | W74: 2017/18 | X74: =SUM([10]Customers!B15:E15) -> 193508
C75: meter numbers | D75: Demand model | E75: Number | F75: n/a | K75: 0.01 | L75: 205715 | M75: 205715 | N75: =M75*(1-$K$75) -> 203657.85 | O75: =N75*(1-$K$75) -> 201621.2715 | P75: 199605.0588 | Q75: 197609.0082 | R75: 195632.9181 | S75: 193676.5889 | W75: 2018/19 | X75: =SUM([10]Customers!B16:E16) -> 196643
C76: Incremental meter numbers | D76: Calculated | E76: Number | F76: n/a | M76: =M75-L75 -> 0 | N76: =N75-M75 -> -2057.15 | O76: =O75-N75 -> -2036.5785 | P76: =P75-O75 -> -2016.212715 | Q76: =Q75-P75 -> -1996.050588 | R76: =R75-Q75 -> -1976.090082 | S76: =S75-R75 -> -1956.329181 | W76: 2019/20 | X76: =SUM([10]Customers!B17:E17) -> 199876
C77: Meter growth rate | M77: =M75/L75-1 -> 0 | N77: =N75/M75-1 -> -0.01 | O77: =O75/N75-1 -> -0.01 | P77: =P75/O75-1 -> -0.01 | Q77: =Q75/P75-1 -> -0.01 | R77: =R75/Q75-1 -> -0.01 | S77: =S75/R75-1 -> -0.01 | W77: 2020/21 | X77: =SUM([10]Customers!B18:E18) -> 203147
W78: 2021/22 | X78: =SUM([10]Customers!B19:E19) -> 206414
W79: 2022/23 | X79: =SUM([10]Customers!B20:E20) -> 209655
C81: Output growth rates
C82: Meter numbers | D82: Calculated | E82: Per cent | F82: n/a | M82: =LN(M75)-LN(L75) -> 0 | N82: -0.01005033585 | O82: -0.01005033585 | P82: -0.01005033585 | Q82: -0.01005033585 | R82: -0.01005033585 | S82: -0.01005033585
C84: Output growth | D84: Calculated | E84: Per cent | F84: n/a | N84: =SUMPRODUCT(N82:N82,$I$68) -> -0.005421818807 | O84: =SUMPRODUCT(O82:O82,$I$68) -> -0.005421818807 | P84: -0.005421818807 | Q84: -0.005421818807 | R84: -0.005421818807 | S84: -0.005421818807
C88: Output growth ($) | D88: Calculated | E88: Dollars | F88: n/a
C90: Rate of change
C91: Real price change | E91: Per cent | F91: n/a | N91: =N53-M53/1 -> 0.002252232239 | O91: 0.001355528463 | P91: 0.003162388898 | Q91: 0.00560967768 | R91: 0.006061171047 | S91: 0.005844541952
C92: Output growth | E92: Per cent | F92: n/a | N92: =N84 -> -0.005421818807 | O92: =O84 -> -0.005421818807 | P92: -0.005421818807 | Q92: -0.005421818807 | R92: -0.005421818807 | S92: -0.005421818807
C93: Productivity growth | E93: Per cent | F93: n/a | N93: =M61 -> 0 | O93: 0 | P93: 0 | Q93: 0 | R93: 0 | S93: 0
C94: Rate of change | D94: Calculated | E94: Per cent | F94: n/a | N94: =N91+N92-N93 -> -0.003169586568 | O94: =O91+O92-O93 -> -0.004066290344 | P94: -0.002259429908 | Q94: 0.000187858873 | R94: 0.00063935224 | S94: 0.0004227231451
B97: Rate of change workings
C101: Rate of change component | M101: FY18 | N101: FY19 | O101: FY20 | P101: FY21 | Q101: FY22 | R101: FY23 | S101: FY24
C102: Real input cost escalation | M102: ='Metering opex forecast '!$M$26 -> 3.939578219 | N102: =M102*(1+N91) -> 3.948451064 | O102: =N102*(1+O91) -> 3.953803302 | P102: =O102*(1+P91) -> 3.966306766 | Q102: =P102*(1+Q91) -> 3.988556468 | R102: 4.012731791 | S102: =R102*(1+S91) -> 4.03618437 | T102: =SUM(O102:S102) -> 19.9575827
C103: Output growth | M103: ='Metering opex forecast '!$M$26 -> 3.939578219 | N103: =M103*(1+N92) -> 3.91821854 | O103: =N103*(1+O92) -> 3.896974669 | P103: 3.875845978 | Q103: 3.854831844 | R103: 3.833931644 | S103: 3.813144761 | T103: 19.2747289
C104: Opex partial factor productivity | M104: ='Metering opex forecast '!$M$26 -> 3.939578219 | N104: =M104*(1+N93) -> 3.939578219 | O104: =N104*(1+O93) -> 3.939578219 | P104: 3.939578219 | Q104: 3.939578219 | R104: 3.939578219 | S104: 3.939578219 | T104: 19.6978911
C105: Rate of change | M105: ='Metering opex forecast '!$M$26 -> 3.939578219 | N105: =M105*(1+N94) -> 3.927091385 | O105: =N105*(1+O94) -> 3.911122691 | P105: =O105*(1+P94) -> 3.902285783 | Q105: =P105*(1+Q94) -> 3.903018862 | R105: =Q105*(1+R94) -> 3.905514266 | S105: =R105*(1+S94) -> 3.907165218 | T105: 19.52910682
C107: Real input cost escalation | N107: =N102-$M102 -> 0.008872845073 | O107: =O102-$M102 -> 0.01422508287 | P107: =P102-$M102 -> 0.02672854654 | Q107: 0.04897824908 | R107: 0.07315357206 | S107: 0.09660615135 | T107: =SUM(O107:S107) -> 0.2596916019
C108: Output growth | N108: =N103-$M103 -> -0.02135967928 | O108: -0.04260355025 | P108: =P103-$M103 -> -0.06373224079 | Q108: -0.08474637541 | R108: -0.1056465752 | S108: -0.1264334579 | T108: -0.4231621995
C109: Opex partial factor productivity | N109: =N104-$M104 -> 0 | O109: 0 | P109: 0 | Q109: 0 | R109: 0 | S109: 0 | T109: 0
C110: Rate of change - additive | N110: =SUM(N107:N109) -> -0.01248683421 | O110: =SUM(O107:O109) -> -0.02837846737 | P110: -0.03700369425 | Q110: -0.03576812633 | R110: -0.03249300314 | S110: -0.02982730653 | T110: =SUM(O110:S110) -> -0.1634705976
C112: Rate of change - multiplicative | N112: =N105-$M$105 -> -0.01248683421 | O112: =O105-$M$105 -> -0.02845552798 | P112: =P105-$M$105 -> -0.03729243556 | Q112: -0.03655935656 | R112: -0.0340639527 | S112: -0.03241300143 | T112: =SUM(O112:S112) -> -0.1687842742
C116: Real input cost escalation | N116: =N107/N$110*N$112 -> 0.008872845073 | O116: 0.01426371053 | P116: 0.02693711047 | Q116: =Q107/Q$110*Q$112 -> 0.05006170172 | R116: 0.07669035109 | S116: 0.1049808275 | T116: =SUM(O116:S116) -> 0.2729337013
C117: Output growth | N117: -0.02135967928 | O117: -0.04271923851 | P117: -0.06422954603 | Q117: -0.08662105827 | R117: -0.1107543038 | S117: -0.1373938289 | T117: =SUM(O117:S117) -> -0.4417179755
C118: Opex partial factor productivity | N118: 0 | O118: 0 | P118: 0 | Q118: 0 | R118: 0 | S118: 0 | T118: =SUM(O118:S118) -> 0
C119: Rate of change - additive | N119: =SUM(N116:N118) -> -0.01248683421 | O119: -0.02845552798 | P119: =SUM(P116:P118) -> -0.03729243556 | Q119: -0.03655935656 | R119: -0.0340639527 | S119: -0.03241300143 | T119: =SUM(O119:S119) -> -0.1687842742

Sheet Metering opex forecast
C1: Evoenergy Electricity Distribution Deterimation 2019-24
C2: Metering opex model
C3: Forecast
M4: Base year | N4: year 5 | O4: 2019-24 regulatory control period
D5: Source | E5: Unit | F5: Basis | G5: Timing | L5: FY ending June | M5: =2018 -> 2018 | N5: =M5+1 -> 2019 | O5: 2020 | P5: 2021 | Q5: 2022 | R5: 2023 | S5: 2024 | U5: Total
B9: Calc | Operating expenditure
M11: Actual | N11: Forecast | O11: Forecast | P11: Forecast | Q11: Forecast | R11: Forecast | S11: Forecast
C12: Opex | D12: Source | E12: Unit | F12: Basis | M12: ="FY"&RIGHT(M$5,2) -> FY18 | N12: ="FY"&RIGHT(N$5,2) -> FY19 | O12: FY20 | P12: FY21 | Q12: FY22 | R12: FY23 | S12: FY24
C14: Base opex
C15: Total opex | E15: $ millions | F15: Nominal | G15: Mid-year | M15: ='Base opex output'!K11 -> 3.89927905
B16: Adjustments | E16: $ millions | F16: Nominal | G16: Mid-year
C19: Rate of change
C20: Real input price growth | D20: Rate of change | E20: per cent | F20: n/a | N20: ='Rate of change'!N91 -> 0.002252232239 | O20: ='Rate of change'!O91 -> 0.001355528463 | P20: ='Rate of change'!P91 -> 0.003162388898 | Q20: ='Rate of change'!Q91 -> 0.00560967768 | R20: ='Rate of change'!R91 -> 0.006061171047 | S20: ='Rate of change'!S91 -> 0.005844541952
C21: Output growth | D21: Rate of change | E21: per cent | F21: n/a | N21: ='Rate of change'!N92 -> -0.005421818807 | O21: ='Rate of change'!O92 -> -0.005421818807 | P21: ='Rate of change'!P92 -> -0.005421818807 | Q21: ='Rate of change'!Q92 -> -0.005421818807 | R21: ='Rate of change'!R92 -> -0.005421818807 | S21: ='Rate of change'!S92 -> -0.005421818807
C22: Productivity growth | D22: Rate of change | E22: per cent | F22: n/a | N22: ='Rate of change'!N93 -> 0 | O22: ='Rate of change'!O93 -> 0 | P22: ='Rate of change'!P93 -> 0 | Q22: ='Rate of change'!Q93 -> 0 | R22: ='Rate of change'!R93 -> 0 | S22: ='Rate of change'!S93 -> 0
C23: Rate of change | D23: Calculated | E23: per cent | F23: n/a | N23: =N20+N21-N22 -> -0.003169586568 | O23: =O20+O21-O22 -> -0.004066290344 | P23: -0.002259429908 | Q23: 0.000187858873 | R23: 0.00063935224 | S23: 0.0004227231451
C26: Base opex(A) | D26: Calculated | F26: Real FY18 | G26: Year-end | M26: =SUM(M15:M16)/'Index Tables'!$K$49 -> 3.939578219 | N26: =M26*(1+N$23) -> 3.927091385 | O26: =N26*(1+O$23) -> 3.911122691 | P26: =O26*(1+P$23) -> 3.902285783 | Q26: 3.903018862 | R26: 3.905514266 | S26: 3.907165218 | U26: =SUM(O26:S26) -> 19.52910682
C27: Base opex(A) | D27: Calculated | F27: Real FY19 | G27: Year-end | M27: =M26*(1+'Rate of change'!$N$16) -> 4.028218729 | N27: =N26*(1+'Rate of change'!$N$16) -> 4.015450941 | O27: =O26*(1+'Rate of change'!$N$16) -> 3.999122952 | P27: =P26*(1+'Rate of change'!$N$16) -> 3.990087214 | Q27: =Q26*(1+'Rate of change'!$N$16) -> 3.990836787 | R27: =R26*(1+'Rate of change'!$N$16) -> 3.993388337 | S27: =S26*(1+'Rate of change'!$N$16) -> 3.995076435 | U27: =SUM(O27:S27) -> 19.96851172
C31: Step changes
M33: FY15 | N33: ="FY"&RIGHT(N$5,2) -> FY19 | O33: ="FY"&RIGHT(O$5,2) -> FY20 | P33: FY21 | Q33: FY22 | R33: FY23 | S33: FY24
E34: $ millions | F34: Real FY18 | G34: Year-end | U34: =SUM(O34:S34) -> 0 | V34: =U34*(1+'Rate of change'!$N$16) -> 0
E35: $ millions | F35: Real FY18 | G35: Year-end | U35: =SUM(O35:S35) -> 0 | V35: =U35*(1+'Rate of change'!$N$16) -> 0
C37: Total step changes (B) | D37: Calculated | F37: Real FY18 | G37: Year-end | N37: =SUM(N34:N35) -> 0 | O37: 0 | P37: 0 | Q37: 0 | R37: 0 | S37: 0 | U37: =SUM(O37:S37) -> 0
C38: Total step changes (B) | D38: Calculated | F38: Real FY19 | G38: Year-end | N38: =N37*(1+'Rate of change'!$N$16) -> 0 | O38: =O37*(1+'Rate of change'!$N$16) -> 0 | P38: =P37*(1+'Rate of change'!$N$16) -> 0 | Q38: =Q37*(1+'Rate of change'!$N$16) -> 0 | R38: =R37*(1+'Rate of change'!$N$16) -> 0 | S38: =S37*(1+'Rate of change'!$N$16) -> 0 | U38: =SUM(O38:S38) -> 0 | V38: =SUM(V34:V35) -> 0
A40: PTRM Input => | C40: Total excluding category specific forecasts (A+B) | D40: Calculated | F40: Real FY19 | G40: Year-end | N40: =N27+N38 -> 4.015450941 | O40: =O27+O38 -> 3.999122952 | P40: 3.990087214 | Q40: 3.990836787 | R40: 3.993388337 | S40: 3.995076435 | U40: =SUM(O40:S40) -> 19.96851172
C43: Total metering opex | D43: Calculated | F43: Real FY18 | G43: Year-end | N43: =N26+N37 -> 3.927091385 | O43: =O26+O37 -> 3.911122691 | P43: 3.902285783 | Q43: 3.903018862 | R43: 3.905514266 | S43: 3.907165218 | U43: =SUM(O43:S43) -> 19.52910682
C44: Total metering opex | D44: Calculated | F44: Real FY19 | G44: Year-end | N44: =N27+N38 -> 4.015450941 | O44: =O27+O38 -> 3.999122952 | P44: =P27+P38 -> 3.990087214 | Q44: 3.990836787 | R44: 3.993388337 | S44: 3.995076435 | U44: =SUM(O44:S44) -> 19.96851172
C45: % change | N45: =N44/M27-1 -> -0.003169586568 | O45: =O44/N44-1 -> -0.004066290344 | P45: -0.002259429908 | Q45: 0.000187858873 | R45: 0.00063935224 | S45: 0.0004227231451
C48: Total opex excluding DRC (A + B + C) | D48: Calculated | F48: Nominal | N48: =N44*'Rate of change'!N28 -> 3.971025409 | O48: =O44*'Rate of change'!O28 -> 3.951016822 | P48: =P44*'Rate of change'!P28 -> 4.03866905 | Q48: =Q44*'Rate of change'!Q28 -> 4.138391756 | R48: =R44*'Rate of change'!R28 -> 4.242491046 | S48: =S44*'Rate of change'!S28 -> 4.34826734 | U48: =SUM(O48:S48) -> 20.71883601
N50: ="FY"&RIGHT(N$5,2) -> FY19 | O50: FY20 | P50: FY21 | Q50: FY22 | R50: FY23 | S50: FY24 | X50: FY16 | Y50: FY17 | Z50: FY18 | AA50: FY19 | AB50: FY20 | AC50: FY21 | AD50: Total
C51: Base opex | F51: Real FY18 | G51: Year-end | N51: =$M$26 -> 3.939578219 | O51: =$M$26 -> 3.939578219 | P51: =$M$26 -> 3.939578219 | Q51: 3.939578219 | R51: 3.939578219 | S51: 3.939578219 | U51: =SUM(O51:S51) -> 19.6978911 | W51: Real FY19 | X51: =N51*(1+'Rate of change'!$N$16) -> 4.028218729 | Y51: =O51*(1+'Rate of change'!$N$16) -> 4.028218729 | Z51: =P51*(1+'Rate of change'!$N$16) -> 4.028218729 | AA51: =Q51*(1+'Rate of change'!$N$16) -> 4.028218729 | AB51: =R51*(1+'Rate of change'!$N$16) -> 4.028218729 | AC51: =S51*(1+'Rate of change'!$N$16) -> 4.028218729 | AD51: =SUM(Y51:AC51) -> 20.14109364
C52: Real price growth | F52: Real FY18 | G52: Year-end | N52: ='Rate of change'!N116 -> 0.008872845073 | O52: ='Rate of change'!O116 -> 0.01426371053 | P52: ='Rate of change'!P116 -> 0.02693711047 | Q52: ='Rate of change'!Q116 -> 0.05006170172 | R52: ='Rate of change'!R116 -> 0.07669035109 | S52: ='Rate of change'!S116 -> 0.1049808275 | U52: =SUM(O52:S52) -> 0.2729337013 | W52: Real FY19 | X52: =N52*(1+'Rate of change'!$N$16) -> 0.009072484087 | Y52: =O52*(1+'Rate of change'!$N$16) -> 0.01458464401 | Z52: =P52*(1+'Rate of change'!$N$16) -> 0.02754319545 | AA52: =Q52*(1+'Rate of change'!$N$16) -> 0.05118809 | AB52: =R52*(1+'Rate of change'!$N$16) -> 0.07841588399 | AC52: =S52*(1+'Rate of change'!$N$16) -> 0.1073428961 | AD52: =SUM(Y52:AC52) -> 0.2790747096
C53: Output growth | F53: Real FY18 | G53: Year-end | N53: ='Rate of change'!N117 -> -0.02135967928 | O53: ='Rate of change'!O117 -> -0.04271923851 | P53: ='Rate of change'!P117 -> -0.06422954603 | Q53: ='Rate of change'!Q117 -> -0.08662105827 | R53: ='Rate of change'!R117 -> -0.1107543038 | S53: ='Rate of change'!S117 -> -0.1373938289 | U53: -0.4417179755 | W53: Real FY19 | X53: =N53*(1+'Rate of change'!$N$16) -> -0.02184027206 | Y53: =O53*(1+'Rate of change'!$N$16) -> -0.04368042138 | Z53: =P53*(1+'Rate of change'!$N$16) -> -0.06567471082 | AA53: =Q53*(1+'Rate of change'!$N$16) -> -0.08857003208 | AB53: =R53*(1+'Rate of change'!$N$16) -> -0.1132462756 | AC53: =S53*(1+'Rate of change'!$N$16) -> -0.1404851901 | AD53: -0.45165663
C54: Productivity growth | F54: Real FY18 | G54: Year-end | N54: ='Rate of change'!N118 -> 0 | O54: ='Rate of change'!O118 -> 0 | P54: ='Rate of change'!P118 -> 0 | Q54: ='Rate of change'!Q118 -> 0 | R54: ='Rate of change'!R118 -> 0 | S54: ='Rate of change'!S118 -> 0 | U54: 0 | W54: Real FY19 | X54: =N54*(1+'Rate of change'!$N$16) -> 0 | Y54: =O54*(1+'Rate of change'!$N$16) -> 0 | Z54: =P54*(1+'Rate of change'!$N$16) -> 0 | AA54: =Q54*(1+'Rate of change'!$N$16) -> 0 | AB54: =R54*(1+'Rate of change'!$N$16) -> 0 | AC54: =S54*(1+'Rate of change'!$N$16) -> 0 | AD54: 0
C55: Step changes | F55: Real FY18 | G55: Year-end | N55: =N37 -> 0 | O55: 0 | P55: 0 | Q55: 0 | R55: 0 | S55: 0 | U55: 0 | W55: Real FY19 | X55: =N55*(1+'Rate of change'!$N$16) -> 0 | Y55: =O55*(1+'Rate of change'!$N$16) -> 0 | Z55: =P55*(1+'Rate of change'!$N$16) -> 0 | AA55: =Q55*(1+'Rate of change'!$N$16) -> 0 | AB55: =R55*(1+'Rate of change'!$N$16) -> 0 | AC55: =S55*(1+'Rate of change'!$N$16) -> 0 | AD55: 0
C56: Total | F56: Real FY18 | G56: Year-end | N56: =SUM(N51:N55) -> 3.927091385 | O56: 3.911122691 | P56: 3.902285783 | Q56: 3.903018862 | R56: 3.905514266 | S56: 3.907165218 | U56: =SUM(O56:S56) -> 19.52910682 | W56: Real FY19 | X56: =N56*(1+'Rate of change'!$N$16) -> 4.015450941 | Y56: =O56*(1+'Rate of change'!$N$16) -> 3.999122952 | Z56: =P56*(1+'Rate of change'!$N$16) -> 3.990087214 | AA56: =Q56*(1+'Rate of change'!$N$16) -> 3.990836787 | AB56: =R56*(1+'Rate of change'!$N$16) -> 3.993388337 | AC56: =S56*(1+'Rate of change'!$N$16) -> 3.995076435 | AD56: =SUM(Y56:AC56) -> 19.96851172
C57: Total | F57: Real FY19 | G57: Year-end | N57: =N56*(1+'Rate of change'!$N$16) -> 4.015450941 | O57: =O56*(1+'Rate of change'!$N$16) -> 3.999122952 | P57: =P56*(1+'Rate of change'!$N$16) -> 3.990087214 | Q57: =Q56*(1+'Rate of change'!$N$16) -> 3.990836787 | R57: =R56*(1+'Rate of change'!$N$16) -> 3.993388337 | S57: =S56*(1+'Rate of change'!$N$16) -> 3.995076435 | U57: =SUM(O57:S57) -> 19.96851172

Sheet Base opex output
A1: Base opex output
B3: $2017/18 mid year | K3: Base year | L3: Forecast
C4: 1000000 | H4: ='Index Tables'!H4 -> FY15 | I4: ='Index Tables'!I4 -> FY16 | J4: ='Index Tables'!J4 -> FY17 | K4: ='Index Tables'!K4 -> FY18 | L4: ='Index Tables'!L4 -> FY19 | M4: ='Index Tables'!M4 -> FY20 | N4: ='Index Tables'!N4 -> FY21 | O4: ='Index Tables'!O4 -> FY22 | P4: ='Index Tables'!P4 -> FY23 | Q4: ='Index Tables'!Q4 -> FY24
B6: Opex category | D6: RIN opex category
C7: Metering Condition Monitoring | D7: Metering | E7: variable | H7: 0.46622197 | I7: 0.47552421 | J7: 0.35187995 | K7: 0.54441891 | L7: 0.5426933271 | M7: 0.5404865785 | N7: 0.539265387 | O7: 0.5393666927 | P7: 0.5397115381 | Q7: 0.5399396866
C8: Metering Strategy & Planning | D8: Metering | E8: fixed | H8: 0.15291883 | I8: 0.07168524 | J8: 0.04260452 | K8: 0.14315926 | L8: 0.1427055043 | M8: 0.1421252223 | N8: 0.1418041003 | O8: 0.1418307395 | P8: 0.1419214193 | Q8: 0.1419814128
C9: Meter Reading | D9: Metering | E9: variable | H9: 1.86212826 | I9: 1.90528939 | J9: 1.78288724 | K9: 1.55911124 | L9: 1.554169502 | M9: 1.547849798 | N9: 1.544352539 | O9: 1.54464266 | P9: 1.54563023 | Q9: 1.546283604
C10: Meter Data Services | D10: Metering | E10: fixed | H10: 0.9833596 | I10: 1.07802045 | J10: 1.21433913 | K10: 1.65258964 | L10: 1.647351614 | M10: 1.640653004 | N10: 1.636946064 | O10: 1.637253578 | P10: 1.63830036 | Q10: 1.638992908
C11: Total | H11: =SUM(H7:H10) -> 3.46462866 | I11: 3.53051929 | J11: 3.39171084 | K11: =SUM(K7:K10) -> 3.89927905 | L11: 3.886919947 | M11: 3.871114602 | N11: 3.86236809 | O11: 3.86309367 | P11: 3.865563548 | Q11: 3.867197611
E13: Fixed | K13: =K8+K10 -> 1.7957489
E14: Variable | K14: =K7+K9 -> 2.10353015
E16: Fixed | K16: =K13/K11 -> 0.4605335697
E17: Variable | K17: =K14/K11 -> 0.5394664303
B19: $2017/18 end year | K19: Base year | L19: Forecast
C20: 1000000 | F20: ='Index Tables'!J37 -> 0 | H20: FY15 | I20: FY16 | J20: FY17 | K20: FY18 | L20: FY19 | M20: FY20 | N20: FY21 | O20: FY22 | P20: FY23 | Q20: FY24
B22: Opex category | D22: RIN opex category
C23: =C7 -> Metering Condition Monitoring | D23: Metering | H23: 0.4708611088 | I23: 0.4802559107 | J23: 0.3553813293 | K23: 0.549836147 | L23: 0.5480933937 | M23: 0.5458646869 | N23: 0.5446313439 | O23: 0.5447336577 | P23: 0.5450819344 | Q23: 0.5453123531
C24: Metering Strategy & Planning | D24: Metering | H24: 0.1544404479 | I24: 0.07239854354 | J24: 0.04302845601 | K24: 0.1445837653 | L24: 0.1441254946 | M24: 0.1435394385 | N24: 0.1432151212 | O24: 0.1432420254 | P24: 0.1433336075 | Q24: 0.1433941979
C25: Meter Reading | D25: Metering | H25: 1.880657356 | I25: 1.92424796 | J25: 1.800627848 | K25: 1.574625167 | L25: 1.569634256 | M25: 1.563251667 | N25: 1.55971961 | O25: 1.560012617 | P25: 1.561010015 | Q25: 1.56166989
C26: Meter Data Services | D26: Metering | H26: 0.9931445136 | I26: 1.088747286 | J26: 1.226422404 | K26: 1.669033723 | L26: 1.663743576 | M26: 1.656978312 | N26: 1.653234485 | O26: 1.65354506 | P26: 1.654602258 | Q26: 1.655301697
C27: Total | H27: =SUM(H23:H26) -> 3.499103426 | I27: 3.5656497 | J27: 3.425460038 | K27: =SUM(K23:K26) -> 3.938078802 | L27: 3.92559672 | M27: 3.909634104 | N27: 3.90080056 | O27: 3.90153336 | P27: 3.904027814 | Q27: 3.905678137
B30: $2018/19 end year | K30: Base year | L30: Forecast
C31: 1000000 | F31: ='Index Tables'!J69 -> 0 | H31: FY15 | I31: FY16 | J31: FY17 | K31: FY18 | L31: FY19 | M31: FY20 | N31: FY21 | O31: FY22 | P31: FY23 | Q31: FY24
B33: Opex category | D33: RIN opex category
C34: =C23 -> Metering Condition Monitoring | D34: =D23 -> Metering | H34: 0.480278331 | I34: 0.4898610289 | J34: 0.3624889559 | K34: 0.5608328699 | L34: 0.5590552616 | M34: 0.5567819806 | N34: 0.5555239707 | O34: 0.5556283309 | P34: 0.5559835731 | Q34: 0.5562186002
C35: =C24 -> Metering Strategy & Planning | D35: Metering | H35: 0.1575292568 | I35: 0.07384651441 | J35: 0.04388902513 | K35: 0.1474754406 | L35: 0.1470080045 | M35: 0.1464102272 | N35: 0.1460794236 | O35: 0.1461068659 | P35: 0.1462002797 | Q35: 0.1462620819
C36: Meter Reading | D36: Metering | H36: 1.918270503 | I36: 1.96273292 | J36: 1.836640405 | K36: 1.60611767 | L36: 1.601026941 | M36: 1.594516701 | N36: 1.590914002 | O36: 1.591212869 | P36: 1.592230215 | Q36: 1.592903287
C37: Meter Data Services | D37: Metering | H37: 1.013007404 | I37: 1.110522232 | J37: 1.250950852 | K37: 1.702414397 | L37: 1.697018448 | M37: 1.690117878 | N37: 1.686299175 | O37: 1.686615961 | P37: 1.687694303 | Q37: 1.68840773
C38: Total | H38: =SUM(H34:H37) -> 3.569085495 | I38: 3.636962694 | J38: 3.493969239 | K38: =SUM(K34:K37) -> 4.016840378 | L38: 4.004108655 | M38: 3.987826787 | N38: 3.978816571 | O38: 3.979564027 | P38: 3.982108371 | Q38: 3.9837917
